bitfinex-derivatives/quotes_BTCF0:USTF0_20250411
["timestamp","ask_amount","ask_price","bid_price","bid_amount"]
[1744342022947,0.1240261,80684.0,80683.0,0.1240255]
[1744342023251,0.1259121,80685.0,80684.0,0.1240245]
[1744342023550,0.0942121,80685.0,80684.0,0.1240245]
[1744342024045,0.0942121,80685.0,80684.0,0.1573245]
[1744342025749,0.0322,80685.0,80684.0,0.1573245]
[1744342025944,0.0620047,80694.0,80684.0,0.1573245]
[1744342025945,0.00018589,80689.0,80688.0,0.1240184]
[1744342026149,0.00018589,80689.0,80688.0,0.4848184]
[1744342026347,0.00018589,80689.0,80688.0,0.5176184]
[1744342027350,0.12420279,80689.0,80688.0,0.5176184]
[1744342027548,0.12420279,80689.0,80688.0,0.4848184]
[1744342028846,0.12420279,80689.0,80688.0,0.5176184]
[1744342033052,0.0620102,80687.0,80680.0,0.4848293]
[1744342033253,0.1240292,80681.0,80680.0,0.4848293]
[1744342034154,0.1240292,80681.0,80680.0,0.3608]
[1744342034352,0.1545292,80681.0,80680.0,0.3608]
[1744342034855,0.1545292,80681.0,80680.0,0.4848307]
[1744342035052,0.0305,80681.0,80680.0,0.4848307]
[1744342035244,0.0303,80682.0,80681.0,0.1240292]
[1744342035450,0.1860399,80684.0,80683.0,0.1860354]
[1744342035648,0.0620123,80684.0,80683.0,0.1860354]
[1744342035855,0.0328,80685.0,80684.0,0.1240245]
[1744342036055,0.0328,80685.0,80684.0,0.1865245]
[1744342036358,0.00018589,80689.0,80684.0,0.1865245]
[1744342036359,0.00018589,80689.0,80688.0,0.1240184]
[1744342036957,0.12420279,80689.0,80688.0,0.1564184]
[1744342038856,0.00018589,80689.0,80688.0,0.1564184]
[1744342039053,0.00018589,80689.0,80688.0,0.5172184]
[1744342040359,0.12420279,80689.0,80688.0,0.1564184]
[1744342040663,0.03258589,80689.0,80688.0,0.5172184]
[1744342041263,0.00018589,80689.0,80688.0,0.5172184]
[1744342042363,0.12420279,80689.0,80688.0,0.3608]
[1744342042558,0.1240184,80688.0,80687.0,0.1240188]
[1744342042766,0.1861184,80688.0,80687.0,0.1240188]
[1744342043665,0.3608,80705.0,80687.0,0.1240188]
[1744342043666,0.1239841,80711.0,80705.0,0.1239923]
[1744342043865,0.0304,80709.0,80705.0,0.4847923]
[1744342044663,0.0304,80709.0,80705.0,0.5464923]
[1744342044860,0.0308,80708.0,80705.0,0.5464923]
[1744342047178,0.0308,80708.0,80705.0,0.1856923]
[1744342047379,0.0308,80708.0,80705.0,0.5464923]
[1744342048180,0.0308,80708.0,80705.0,0.4847923]
[1744342048181,0.0927945,80708.0,80705.0,0.4847923]
[1744342048385,0.0927945,80708.0,80705.0,0.1239923]
[1744342049881,0.0308,80708.0,80705.0,0.1239923]
[1744342050066,0.1243907,80706.0,80705.0,0.1239923]
[1744342050272,0.1243907,80706.0,80705.0,0.1888923]
[1744342051184,0.1243907,80706.0,80705.0,0.1239923]
[1744342053676,0.1243907,80706.0,80705.0,0.1557923]
[1744342055889,0.0004,80706.0,80705.0,0.5165923]
[1744342058490,0.0004,80706.0,80705.0,0.1557923]
[1744342058790,0.0004,80706.0,80705.0,0.5165923]
[1744342066787,0.0004,80706.0,80705.0,0.1557923]
[1744342066991,0.0004,80706.0,80705.0,0.5165923]
[1744342074602,0.0004,80706.0,80705.0,0.4847923]
[1744342076190,0.0944,80706.0,80705.0,0.4847923]
[1744342082799,0.0944,80706.0,80705.0,0.3608]
[1744342082994,0.1239984,80701.0,80700.0,0.4814715]
[1744342083309,0.0619971,80704.0,80703.0,0.1239953]
[1744342086605,0.1239984,80702.0,80701.0,0.1239975]
[1744342086999,0.1560984,80702.0,80701.0,0.1239975]
[1744342095201,0.1240015,80699.0,80698.0,0.3608]
[1744342095511,0.1240015,80699.0,80698.0,0.484803]
[1744342095905,0.0619999,80701.0,80700.0,0.124]
[1744342099313,0.0921999,80701.0,80700.0,0.124]
[1744342099509,0.0921999,80701.0,80700.0,0.154]
[1744342099711,0.0921999,80701.0,80700.0,0.124]
[1744342108720,0.1541984,80701.0,80700.0,0.124]
[1744342109328,0.0302,80701.0,80700.0,0.1882]
[1744342109625,0.0004,80706.0,80705.0,0.1239923]
[1744342109824,0.0004,80706.0,80705.0,0.4847923]
[1744342110617,0.0004,80706.0,80705.0,0.5475923]
[1744342114726,0.0004,80706.0,80705.0,0.5427923]
[1744342116527,0.1243907,80706.0,80705.0,0.5121923]
[1744342116833,0.1243907,80706.0,80705.0,0.4799923]
[1744342117634,0.1243907,80706.0,80705.0,0.3608]
[1744342117825,0.1243907,80706.0,80705.0,0.4847923]
[1744342118824,0.1239923,80705.0,80704.0,0.22180868]
[1744342119020,0.1898923,80705.0,80704.0,0.22180868]
[1744342120125,0.4398923,80705.0,80704.0,0.22180868]
[1744342121520,0.4398923,80705.0,80697.0,0.00018589]
[1744342121521,0.124003,80698.0,80697.0,0.00018589]
[1744342121719,0.484803,80698.0,80697.0,0.00018589]
[1744342122125,0.4971906,80698.0,80697.0,0.00018589]
[1744342122426,0.5623906,80698.0,80697.0,0.00018589]
[1744342123027,0.1240107,80693.0,80692.0,0.22180868]
[1744342123533,0.1240215,80686.0,80685.0,0.2954751]
[1744342124521,0.1868215,80686.0,80685.0,0.2954751]
[1744342124726,0.0628,80686.0,80685.0,0.2954751]
[1744342124924,0.1868215,80686.0,80685.0,0.4194981]
[1744342125524,0.1240261,80684.0,80683.0,0.1240248]
[1744342125930,0.1240307,80680.0,80679.0,0.4228159]
[1744342126134,0.1240307,80680.0,80679.0,0.3608]
[1744342126432,0.1240307,80680.0,80679.0,0.4848322]
[1744342127123,0.1872307,80680.0,80679.0,0.5469322]
[1744342127328,0.1551307,80680.0,80679.0,0.5469322]
[1744342127831,0.0311,80680.0,80679.0,0.5469322]
[1744342128031,0.1551307,80680.0,80679.0,0.5469322]
[1744342132340,0.1551307,80680.0,80679.0,0.1861322]
[1744342132526,0.1551307,80680.0,80679.0,0.5469322]
[1744342133335,0.1551307,80680.0,80679.0,0.1861322]
[1744342133528,0.1551307,80680.0,80679.0,0.5469322]
[1744342136436,0.1551307,80680.0,80679.0,0.4848322]
[1744342137041,0.1551307,80680.0,80679.0,0.5171322]
[1744342137433,0.1551307,80680.0,80679.0,0.5485322]
[1744342137836,0.0311,80680.0,80679.0,0.5485322]
[1744342140034,0.1551307,80680.0,80679.0,0.5485322]
[1744342147548,0.0311,80680.0,80679.0,0.5485322]
[1744342147851,0.3608,80692.0,80691.0,0.1240138]
[1744342147852,0.1860227,80692.0,80691.0,0.1240138]
[1744342148242,0.1240138,80691.0,80690.0,0.2197153]
[1744342148441,0.186029,80689.0,80688.0,0.124018]
[1744342148645,0.0620079,80690.0,80680.0,0.1240299]
[1744342148646,0.1860475,80681.0,80680.0,0.1240299]
[1744342149352,0.2505475,80681.0,80680.0,0.1561299]
[1744342150045,0.1265153,80681.0,80680.0,0.1561299]
[1744342150945,0.0645,80681.0,80680.0,0.1561299]
[1744342152151,0.1885292,80681.0,80680.0,0.1561299]
[1744342152353,0.0645,80681.0,80680.0,0.1240299]
[1744342153452,0.0327,80681.0,80680.0,0.1240299]
[1744342153953,0.11115927,80682.0,80681.0,0.1240292]
[1744342154156,0.11115927,80682.0,80681.0,0.4848292]
[1744342155843,0.3608,80684.0,80677.0,0.00018589]
[1744342156044,0.1240553,80664.0,80663.0,0.4440003]
[1744342156346,0.0620297,80662.0,80659.0,0.00049591]
[1744342156548,0.3608,80664.0,80661.0,0.0620299]
[1744342156853,0.08644,80666.0,80665.0,0.1240538]
[1744342157052,0.08644,80666.0,80664.0,0.1240547]
[1744342157254,0.1240547,80665.0,80664.0,0.1240547]
[1744342157449,0.1240547,80665.0,80659.0,0.03209591]
[1744342157450,0.1240614,80660.0,80659.0,0.03209591]
[1744342158748,0.1240614,80660.0,80659.0,0.00049591]
[1744342160060,0.1863614,80660.0,80659.0,0.00049591]
[1744342161147,0.03,80660.0,80659.0,0.12455891]
[1744342161660,0.1540614,80660.0,80659.0,0.15715891]
[1744342163360,0.1240614,80660.0,80659.0,0.15715891]
[1744342164249,0.14869372,80662.0,80661.0,0.1240599]
[1744342165762,0.1240496,80668.0,80667.0,0.1240507]
[1744342166652,0.1111126,80669.0,80668.0,0.1240491]
[1744342167459,0.2351602,80669.0,80668.0,0.1240491]
[1744342168357,0.1240507,80667.0,80666.0,0.0620259]
[1744342169056,0.1881507,80667.0,80666.0,0.0620259]
[1744342173462,0.0641,80667.0,80666.0,0.0620259]
[1744342173659,0.4848436,80672.0,80671.0,0.1240445]
[1744342173850,0.1240436,80672.0,80671.0,0.1240445]
[1744342174055,0.2104036,80672.0,80671.0,0.1240445]
[1744342174867,0.2405036,80672.0,80671.0,0.1240445]
[1744342175963,0.1541436,80672.0,80671.0,0.1240445]
[1744342177669,0.1850436,80672.0,80671.0,0.1240445]
[1744342182163,0.29618979,80672.0,80671.0,0.1240445]
[1744342185574,0.1850436,80672.0,80671.0,0.1240445]
[1744342186973,0.1850436,80672.0,80671.0,0.1548445]
[1744342189274,0.33373732,80672.0,80671.0,0.1548445]
[1744342191473,0.20969372,80672.0,80671.0,0.1548445]
[1744342192181,0.20969372,80672.0,80671.0,0.17139075]
[1744342192771,0.061,80672.0,80671.0,0.17139075]
[1744342193571,0.0309,80672.0,80671.0,0.17139075]
[1744342193772,0.154943,80672.0,80671.0,0.17139075]
[1744342194072,0.187743,80672.0,80671.0,0.17139075]
[1744342195073,0.0637,80672.0,80671.0,0.17139075]
[1744342195381,0.08646589,80674.0,80673.0,0.1240415]
[1744342195574,0.00018589,80674.0,80673.0,0.1240415]
[1744342195772,0.00018589,80674.0,80673.0,0.17280152]
[1744342196173,0.00018589,80674.0,80673.0,0.1563415]
[1744342198179,0.18517798,80678.0,80677.0,0.1240353]
[1744342198373,0.0620015,80699.0,80686.0,0.1240215]
[1744342198677,0.124007,80696.0,80686.0,0.4848215]
[1744342198881,0.1240082,80695.0,80686.0,0.4848215]
[1744342199181,0.1870082,80695.0,80686.0,0.4848215]
[1744342199386,0.18719409,80695.0,80686.0,0.5485215]
[1744342199778,0.06318589,80695.0,80686.0,0.5485215]
[1744342200079,0.124016,80690.0,80686.0,0.5485215]
[1744342200279,0.06318589,80695.0,80686.0,0.5485215]
[1744342200577,0.00018589,80695.0,80694.0,0.1240092]
[1744342201082,0.00018589,80695.0,80694.0,0.14114416]
[1744342201587,0.00018589,80695.0,80694.0,0.50194416]
[1744342202185,0.00018589,80695.0,80694.0,0.56554416]
[1744342202575,0.1240219,80690.0,80689.0,0.1240146]
[1744342202875,0.1240219,80690.0,80689.0,0.1894146]
[1744342203082,0.1240219,80690.0,80689.0,0.1240146]
[1744342203483,0.1869219,80690.0,80689.0,0.1888146]
[1744342203785,0.1869219,80690.0,80689.0,0.1240146]
[1744342205683,0.1869219,80690.0,80689.0,0.1564146]
[1744342208385,0.1869219,80690.0,80689.0,0.1240146]
[1744342209091,0.1860429,80683.0,80682.0,0.0620136]
[1744342209484,0.2768429,80683.0,80682.0,0.0620136]
[1744342209680,0.1528137,80683.0,80682.0,0.0620136]
[1744342209991,0.1222137,80683.0,80682.0,0.0620136]
[1744342211883,0.0602,80683.0,80682.0,0.0620136]
[1744342212089,0.44704,80687.0,80686.0,0.1240215]
[1744342212389,0.3608,80687.0,80686.0,0.1240215]
[1744342212989,0.2102571,80689.0,80688.0,0.1240184]
[1744342213184,0.1860305,80687.0,80686.0,0.1240213]
[1744342214395,0.0620106,80687.0,80686.0,0.14049448]
[1744342214889,0.0620106,80687.0,80686.0,0.1240213]
[1744342215093,0.0620106,80687.0,80686.0,0.14057164]
[1744342215991,0.11121819,80689.0,80688.0,0.1240184]
[1744342216295,0.11121819,80689.0,80688.0,0.14067416]
[1744342217793,0.1239781,80715.0,80699.0,0.0620005]
[1744342217993,0.0309,80714.0,80705.0,0.4847923]
[1744342218199,0.0309,80714.0,80705.0,0.50144806]
[1744342218698,0.1239819,80712.0,80705.0,0.50144806]
[1744342218899,0.0629,80711.0,80705.0,0.56564806]
[1744342219100,0.0629,80711.0,80705.0,0.5489923]
[1744342219895,0.00018589,80714.0,80705.0,0.56578411]
[1744342223015,0.00018589,80714.0,80705.0,0.5489923]
[1744342223916,0.0619928,80710.0,80705.0,0.5489923]
[1744342224213,0.0645,80709.0,80705.0,0.5489923]
[1744342224413,0.1243907,80706.0,80705.0,0.1548923]
[1744342227116,0.1239984,80701.0,80700.0,0.1239992]
[1744342227408,0.4847984,80701.0,80700.0,0.1239992]
[1744342228116,0.1240015,80699.0,80698.0,0.186003]
[1744342228611,0.1860381,80686.0,80685.0,0.0620114]
[1744342228812,0.1860381,80686.0,80683.0,0.0303]
[1744342229015,0.1240307,80680.0,80679.0,0.2169437]
[1744342229403,0.1240307,80680.0,80679.0,0.2472437]
[1744342229812,0.1881307,80680.0,80679.0,0.2472437]
[1744342231517,0.00018589,80688.0,80687.0,0.1240199]
[1744342231720,0.12420429,80688.0,80687.0,0.1240199]
[1744342232324,0.12420429,80688.0,80687.0,0.1565199]
[1744342232611,0.12420429,80688.0,80687.0,0.1871199]
[1744342235121,0.1240307,80680.0,80679.0,0.1549295]
[1744342236121,0.1240307,80680.0,80679.0,0.1873295]
[1744342236512,0.1240307,80680.0,80679.0,0.2184295]
[1744342237817,0.1561307,80680.0,80679.0,0.2184295]
[1744342239124,0.1240338,80678.0,80677.0,0.4848348]
[1744342239323,0.1240338,80678.0,80677.0,0.1240348]
[1744342239822,0.1560338,80678.0,80677.0,0.1240348]
[1744342240521,0.1884338,80678.0,80677.0,0.1569348]
[1744342241216,0.1884338,80678.0,80677.0,0.1881348]
[1744342241721,0.1884338,80678.0,80677.0,0.1569348]
[1744342242618,0.1884338,80678.0,80677.0,0.5177348]
[1744342242821,0.1884338,80678.0,80677.0,0.5494348]
[1744342243017,0.00018589,80688.0,80682.0,0.0620131]
[1744342243322,0.1240215,80686.0,80685.0,0.1860323]
[1744342244020,0.1889215,80686.0,80685.0,0.1860323]
[1744342245220,0.1240245,80684.0,80683.0,0.1240254]
[1744342245814,0.1862245,80684.0,80683.0,0.1240254]
[1744342246525,0.1242125,80684.0,80678.0,0.0309]
[1744342246728,0.1240353,80677.0,80676.0,0.1557351]
[1744342247023,0.124043,80672.0,80670.0,0.124046]
[1744342247218,0.484843,80672.0,80667.0,0.0620252]
[1744342247822,0.484843,80672.0,80668.0,0.1240485]
[1744342248021,0.484843,80672.0,80658.0,0.22130171]
[1744342248022,0.547043,80672.0,80658.0,0.22130171]
[1744342248217,0.547043,80672.0,80662.0,0.1240583]
[1744342248415,0.547043,80672.0,80663.0,0.1240567]
[1744342248614,0.547043,80672.0,80662.0,0.1240579]
[1744342248815,0.547043,80672.0,80659.0,0.03099591]
[1744342249218,0.547043,80672.0,80659.0,0.00049591]
[1744342249622,0.547043,80672.0,80660.0,0.1240613]
[1744342250327,0.1240599,80661.0,80660.0,0.1240613]
[1744342250528,0.1240614,80660.0,80659.0,0.00049591]
[1744342250730,0.1240614,80660.0,80659.0,0.12455891]
[1744342251116,0.1240614,80660.0,80659.0,0.00049591]
[1744342254021,0.1886614,80660.0,80659.0,0.00049591]
[1744342257431,0.2747814,80660.0,80659.0,0.03209591]
[1744342257931,0.6355814,80660.0,80659.0,0.03209591]
[1744342259534,0.6355814,80660.0,80659.0,0.15615891]
[1744342260735,0.6355814,80660.0,80659.0,0.03209591]
[1744342261935,0.6355814,80660.0,80659.0,0.00049591]
[1744342263225,0.1240722,80653.0,80652.0,0.0326]
[1744342263535,0.4848722,80653.0,80652.0,0.0326]
[1744342263735,0.4848722,80653.0,80652.0,0.0628]
[1744342264134,0.5503722,80653.0,80652.0,0.0628]
[1744342265232,0.4263,80653.0,80639.0,0.0620468]
[1744342265531,0.1861374,80642.0,80641.0,0.12409]
[1744342265842,0.1240922,80640.0,80639.0,0.0609]
[1744342266533,0.1895922,80640.0,80639.0,0.0609]
[1744342266731,0.1240984,80636.0,80635.0,0.00049606]
[1744342266937,0.4848984,80636.0,80635.0,0.00049606]
[1744342267530,0.4848984,80636.0,80635.0,0.03269606]
[1744342267730,0.4848984,80636.0,80635.0,0.06589606]
[1744342267932,0.6029584,80636.0,80635.0,0.06589606]
[1744342268440,0.6029584,80636.0,80635.0,0.18999596]
[1744342268634,0.2102584,80636.0,80635.0,0.18999596]
[1744342269140,0.1240984,80636.0,80635.0,0.18999596]
[1744342269437,0.4848984,80636.0,80635.0,0.03369606]
[1744342269832,0.5491984,80636.0,80635.0,0.03369606]
[1744342270137,0.1883984,80636.0,80635.0,0.03369606]
[1744342270334,0.5491984,80636.0,80635.0,0.03369606]
[1744342270845,0.5491984,80636.0,80635.0,0.00049606]
[1744342273043,0.0620602,80622.0,80616.0,0.186184]
[1744342273237,0.1241322,80617.0,80616.0,0.2482465]
[1744342273544,0.0620607,80621.0,80620.0,0.124123]
[1744342273738,0.1241175,80624.0,80621.0,0.0620605]
[1744342273939,0.1241175,80624.0,80623.0,0.1241168]
[1744342274447,0.00018601,80632.0,80623.0,0.1241168]
[1744342274448,0.06223841,80632.0,80631.0,0.1241061]
[1744342274737,0.08616,80639.0,80638.0,0.1240953]
[1744342274942,0.0620438,80643.0,80640.0,0.1240922]
[1744342275841,0.08616,80645.0,80640.0,0.1240922]
[1744342276148,0.00018601,80649.0,80648.0,0.1240799]
[1744342276347,0.12426441,80649.0,80648.0,0.1240799]
[1744342276543,0.12426441,80649.0,80648.0,0.1895799]
[1744342277945,0.12426441,80649.0,80648.0,0.2221799]
[1744342278249,0.00018601,80649.0,80648.0,0.5829799]
[1744342278444,0.00018601,80649.0,80648.0,0.8329799]
[1744342278653,0.00018601,80649.0,80648.0,0.5829799]
[1744342283754,0.12426441,80649.0,80648.0,0.5829799]
[1744342287648,0.12426441,80649.0,80648.0,0.2221799]
[1744342287848,0.12426441,80649.0,80648.0,0.5829799]
[1744342290157,0.12426441,80649.0,80648.0,0.2221799]
[1744342291156,0.00018601,80649.0,80648.0,0.2221799]
[1744342291549,0.3608,80674.0,80657.0,0.1240661]
[1744342291748,0.1240635,80659.0,80657.0,0.4848661]
[1744342291948,0.14823946,80665.0,80657.0,0.4848661]
[1744342292454,0.124057,80663.0,80657.0,0.4848661]
[1744342292754,0.1240589,80662.0,80657.0,0.49396436]
[1744342293972,0.1240621,80660.0,80657.0,0.49396436]
[1744342294268,0.1244645,80658.0,80657.0,0.49396436]
[1744342294765,0.1244645,80658.0,80657.0,0.3608]
[1744342294970,0.1244645,80658.0,80657.0,0.4848661]
[1744342296066,0.0004,80658.0,80657.0,0.4848661]
[1744342296369,0.1244645,80658.0,80657.0,0.4848661]
[1744342296563,0.1244645,80658.0,80657.0,0.5175661]
[1744342297370,0.1244645,80658.0,80657.0,0.3935]
[1744342297566,0.1244645,80658.0,80653.0,0.1240714]
[1744342297771,0.1244645,80658.0,80648.0,0.04202644]
[1744342297772,0.0620345,80655.0,80648.0,0.04202644]
[1744342297974,0.4848768,80650.0,80643.0,0.22130171]
[1744342298158,0.4848768,80650.0,80643.0,0.34538821]
[1744342298364,0.4848768,80650.0,80643.0,0.22130171]
[1744342298775,0.5156768,80650.0,80643.0,0.22130171]
[1744342298967,0.5156768,80650.0,80645.0,0.1240845]
[1744342300267,0.5156768,80650.0,80643.0,0.0620435]
[1744342300464,0.0620486,80637.0,80631.0,0.22130171]
[1744342300768,0.1241045,80632.0,80631.0,0.34540681]
[1744342301773,0.1574045,80632.0,80631.0,0.34540681]
[1744342303471,0.1574045,80632.0,80631.0,0.22130171]
[1744342303976,0.1241061,80631.0,80630.0,0.1241075]
[1744342304177,0.1571061,80631.0,80630.0,0.1241075]
[1744342304377,0.1861674,80629.0,80628.0,0.1861647]
[1744342304774,0.1241122,80627.0,80626.0,0.5469696]
[1744342306476,0.1241122,80627.0,80626.0,0.3608]
[1744342306879,0.1241122,80627.0,80626.0,0.4849138]
[1744342308973,0.1241122,80627.0,80626.0,0.1241138]
[1744342309890,0.1248522,80633.0,80632.0,0.1241045]
[1744342311180,0.01238205,80640.0,80639.0,0.1240938]
[1744342311382,0.01238205,80640.0,80639.0,0.4848938]
[1744342311982,0.00018601,80640.0,80639.0,0.4848938]
[1744342315078,0.12427821,80640.0,80639.0,0.4848938]
[1744342315482,0.12427821,80640.0,80639.0,0.1240938]
[1744342316085,0.00018601,80640.0,80639.0,0.1240938]
[1744342317976,0.12427821,80640.0,80639.0,0.1240938]
[1744342319083,0.15427821,80640.0,80639.0,0.1240938]
[1744342319690,0.15427821,80640.0,80639.0,0.1866938]
[1744342319992,0.12427821,80640.0,80639.0,0.1866938]
[1744342320389,0.00018601,80640.0,80639.0,0.1866938]
[1744342320589,0.12427821,80640.0,80639.0,0.1866938]
[1744342320997,0.00018601,80640.0,80639.0,0.1866938]
[1744342323493,0.0620335,80657.0,80639.0,0.1866938]
[1744342323494,0.14863946,80658.0,80657.0,0.1240661]
[1744342323694,0.14863946,80658.0,80657.0,0.4848661]
[1744342323991,0.14863946,80658.0,80657.0,0.1240661]
[1744342324396,0.14863946,80658.0,80657.0,0.1876661]
[1744342325902,0.14863946,80658.0,80657.0,0.5484661]
[1744342327399,0.0004,80658.0,80657.0,0.5484661]
[1744342330699,0.0004,80658.0,80657.0,0.1876661]
[1744342331492,0.1244645,80658.0,80657.0,0.1544661]
[1744342331800,0.0004,80658.0,80657.0,0.1544661]
[1744342332001,0.0004,80658.0,80657.0,0.1871661]
[1744342332803,0.0637,80658.0,80657.0,0.1871661]
[1744342334702,0.0004,80658.0,80657.0,0.1871661]
[1744342342300,0.00018601,80666.0,80665.0,0.1240538]
[1744342342607,0.00018601,80666.0,80665.0,0.4848538]
[1744342343208,0.00018601,80666.0,80665.0,0.5504538]
[1744342346201,0.00018601,80666.0,80665.0,0.9112538]
[1744342347310,0.00018601,80666.0,80665.0,0.1896538]
[1744342347502,0.00018601,80666.0,80665.0,0.9112538]
[1744342353416,0.00018601,80666.0,80665.0,0.8786538]
[1744342358911,0.00018601,80666.0,80665.0,0.8456538]
[1744342359117,0.1240645,80658.0,80657.0,0.34536691]
[1744342359817,0.1240645,80658.0,80657.0,0.1240652]
[1744342360017,0.1861645,80658.0,80657.0,0.1240652]
[1744342360313,0.0621,80658.0,80657.0,0.1240652]
[1744342360707,0.1861645,80658.0,80657.0,0.1240652]
[1744342362918,0.0621,80658.0,80657.0,0.1240652]
[1744342363314,0.0621,80658.0,80657.0,0.1541652]
[1744342363620,0.0621,80658.0,80657.0,0.1847652]
[1744342364811,0.11126705,80662.0,80661.0,0.1240599]
[1744342366321,0.11126705,80662.0,80661.0,0.1548599]
[1744342367118,0.0322,80665.0,80664.0,0.1240553]
[1744342368423,0.0322,80665.0,80664.0,0.1557553]
[1744342371317,0.03158601,80666.0,80665.0,0.1240538]
[1744342371520,0.03158601,80666.0,80665.0,0.1869538]
[1744342372326,0.03158601,80666.0,80665.0,0.1546538]
[1744342373422,0.03158601,80666.0,80665.0,0.1240538]
[1744342376924,0.1240661,80657.0,80656.0,0.64432042]
[1744342377123,0.1240661,80657.0,80656.0,0.22148682]
[1744342377323,0.1240661,80657.0,80656.0,0.34555442]
[1744342377828,0.1240661,80657.0,80656.0,0.22148682]
[1744342378132,0.5488661,80657.0,80656.0,0.22148682]
[1744342378628,0.5488661,80657.0,80656.0,0.34555442]
[1744342379729,0.5488661,80657.0,80656.0,0.22148682]
[1744342380327,0.56108956,80657.0,80656.0,0.22148682]
[1744342380524,0.56108956,80657.0,80656.0,0.34555442]
[1744342380721,0.34852902,80657.0,80656.0,0.1240676]
[1744342380934,0.21223946,80657.0,80656.0,0.4848676]
[1744342382633,0.14823946,80657.0,80656.0,0.5170676]
[1744342383320,0.20973946,80657.0,80656.0,0.5170676]
[1744342383921,0.33380556,80657.0,80656.0,0.5170676]
[1744342384128,0.33380556,80657.0,80656.0,0.4848676]
[1744342384428,0.1855661,80657.0,80656.0,0.4848676]
[1744342386433,0.1855661,80657.0,80656.0,0.1240676]
[1744342388125,0.1240691,80655.0,80654.0,0.15537]
[1744342388435,0.1240738,80652.0,80651.0,0.0313]
[1744342388739,0.1240753,80651.0,80650.0,0.0312]
[1744342389743,0.1559753,80651.0,80650.0,0.0623]
[1744342389941,0.1559753,80651.0,80650.0,0.1863768]
[1744342390839,0.1559753,80651.0,80650.0,0.1240768]
[1744342391042,0.1872753,80651.0,80650.0,0.1240768]
[1744342391235,0.1872753,80651.0,80650.0,0.1551768]
[1744342391731,0.19721229,80652.0,80650.0,0.0311]
[1744342391946,0.19721229,80652.0,80651.0,0.1240753]
[1744342392150,0.35288609,80652.0,80651.0,0.1552753]
[1744342392443,0.26704609,80652.0,80651.0,0.1878753]
[1744342394835,0.1556738,80652.0,80651.0,0.1878753]
[1744342395534,0.1556738,80652.0,80651.0,0.1240753]
[1744342398051,0.1240738,80652.0,80651.0,0.1240753]
[1744342398847,0.1240738,80652.0,80651.0,0.1565753]
[1744342399441,0.1569738,80652.0,80651.0,0.1565753]
[1744342399639,0.1240738,80652.0,80651.0,0.1565753]
[1744342402544,0.11137229,80655.0,80654.0,0.1240707]
[1744342402747,0.11137229,80655.0,80654.0,0.4848707]
[1744342403451,0.11137229,80655.0,80654.0,0.5151707]
[1744342404943,0.18522277,80665.0,80664.0,0.1240553]
[1744342405151,0.18522277,80665.0,80664.0,0.4848553]
[1744342405857,0.18522277,80665.0,80664.0,0.5491553]
[1744342409152,0.30927657,80665.0,80664.0,0.5175553]
[1744342409348,0.40567657,80665.0,80664.0,0.5175553]
[1744342409953,0.28162277,80665.0,80664.0,0.5175553]
[1744342410140,0.18522277,80665.0,80664.0,0.5175553]
[1744342411355,0.24952277,80665.0,80664.0,0.5175553]
[1744342411554,0.28152277,80665.0,80664.0,0.5175553]
[1744342412253,0.40557657,80665.0,80664.0,0.3608]
[1744342412646,0.40557657,80665.0,80664.0,0.4848553]
[1744342413550,0.2203538,80665.0,80664.0,0.4848553]
[1744342415655,0.5811538,80665.0,80664.0,0.1240553]
[1744342416454,0.0620286,80663.0,80660.0,0.1240606]
[1744342416659,0.1240645,80658.0,80657.0,0.28351962]
[1744342417459,0.1240645,80658.0,80657.0,0.0620328]
[1744342418252,0.1540645,80658.0,80657.0,0.0620328]
[1744342418455,0.062034,80656.0,80652.0,0.0321]
[1744342418654,0.1240707,80654.0,80653.0,0.1561722]
[1744342419057,0.1240738,80652.0,80651.0,0.0620374]
[1744342420959,0.0631,80654.0,80653.0,0.1240722]
[1744342421158,0.1240667,80657.0,80656.0,0.1860976]
[1744342421354,0.1240667,80657.0,80656.0,0.2809976]
[1744342422066,0.1850667,80657.0,80656.0,0.2809976]
[1744342422362,0.1850667,80657.0,80656.0,0.2492976]
[1744342424169,0.1850667,80657.0,80656.0,0.2191976]
[1744342424363,0.1850667,80657.0,80656.0,0.0951331]
[1744342427173,0.1861074,80655.0,80654.0,0.1240703]
[1744342427375,0.1240753,80651.0,80650.0,0.5783117]
[1744342430974,0.1240753,80651.0,80650.0,0.2175117]
[1744342437173,0.1240753,80651.0,80650.0,0.2476117]
[1744342437381,0.1240753,80651.0,80650.0,0.2175117]
[1744342438789,0.1240753,80651.0,80650.0,0.2476117]
[1744342439187,0.1240768,80650.0,80649.0,0.00018601]
[1744342439388,0.2206768,80650.0,80649.0,1e-08]
[1744342439689,0.8314768,80650.0,80649.0,1e-08]
[1744342440790,0.5814768,80650.0,80649.0,1e-08]
[1744342442790,0.59061177,80650.0,80649.0,1e-08]
[1744342444089,0.71653497,80650.0,80638.0,0.22144683]
[1744342444388,0.062051,80634.0,80627.0,0.35663688]
[1744342444595,0.062051,80634.0,80616.0,0.031]
[1744342444596,0.1241199,80622.0,80621.0,0.22176077]
[1744342444986,0.13675284,80622.0,80621.0,0.22176077]
[1744342445491,0.23155284,80622.0,80621.0,0.22176077]
[1744342445686,0.1241276,80617.0,80616.0,0.29568103]
[1744342445989,0.1241322,80614.0,80613.0,0.00018601]
[1744342446193,0.1241446,80606.0,80605.0,0.0329]
[1744342446390,0.4849446,80606.0,80605.0,0.0329]
[1744342446579,0.1241461,80605.0,80599.0,0.0328]
[1744342446782,0.1866461,80605.0,80599.0,0.0328]
[1744342446984,0.1866461,80605.0,80596.0,0.42483473]
[1744342447295,0.1866461,80605.0,80596.0,0.42502074]
[1744342447893,0.1866461,80605.0,80597.0,0.0328]
[1744342448294,0.1866461,80605.0,80597.0,0.1569577]
[1744342448295,0.2723661,80605.0,80597.0,0.1569577]
[1744342448593,0.1866461,80605.0,80598.0,0.03]
[1744342448895,0.2723661,80605.0,80601.0,0.1241518]
[1744342449394,0.2723661,80605.0,80602.0,0.0628]
[1744342449895,0.1241492,80603.0,80602.0,0.0628]
[1744342450091,0.1241492,80603.0,80602.0,0.1869507]
[1744342450280,0.1241492,80603.0,80602.0,0.0628]
[1744342450992,0.1241492,80603.0,80602.0,0.1869507]
[1744342451192,0.13339526,80603.0,80602.0,0.0628]
[1744342451693,0.1241492,80603.0,80602.0,0.1869507]
[1744342452495,0.08572,80604.0,80603.0,0.1241492]
[1744342452698,0.08572,80604.0,80603.0,0.1868492]
[1744342453594,0.124145,80606.0,80605.0,0.1241461]
[1744342454592,0.0620713,80608.0,80607.0,0.124143]
[1744342455596,0.0620713,80608.0,80607.0,0.187543]
[1744342458793,0.00018601,80613.0,80612.0,0.1241353]
[1744342459595,0.00018601,80613.0,80612.0,0.1870353]
[1744342462700,0.12431981,80613.0,80612.0,0.1870353]
[1744342464904,0.12431981,80613.0,80612.0,0.5478353]
[1744342465100,0.12431981,80613.0,80612.0,0.1870353]